bitfinex-derivatives/quotes_SOLF0:USTF0_20250928
["timestamp","ask_amount","ask_price","bid_price","bid_amount"]
[1759070262021,7.42,201.25,201.17,12.0716]
[1759070262221,7.42,201.25,201.17,7.6]
[1759070265422,11.8901,201.25,201.17,7.6]
[1759070265618,7.42,201.25,201.17,7.6]
[1759070266620,4.4703,201.24,201.17,7.6]
[1759070267325,11.8905,201.23,201.17,7.6]
[1759070268123,7.42,201.27,201.17,7.6]
[1759070268921,7.42,201.27,201.18,7.6]
[1759070269529,7.42,201.27,201.21,12.0707]
[1759070273838,7.42,201.27,201.21,7.6]
[1759070278845,4.4688,201.3,201.21,7.6]
[1759070279442,7.59,201.29,201.21,7.6]
[1759070279643,7.59,201.29,201.22,4.4704]
[1759070279845,7.59,201.29,201.23,7.96]
[1759070280244,7.59,201.29,201.15,69.5664]
[1759070280245,0.8649401,201.31,201.15,7.96]
[1759070280544,7.59,201.3,201.15,7.96]
[1759070280840,4.4694,201.28,201.19,4.4711]
[1759070281040,7.59,201.27,201.2,7.96]
[1759070282144,12.0596,201.27,201.2,7.96]
[1759070282442,12.0596,201.27,201.17,7.96]
[1759070282443,7.59,201.27,201.17,7.96]
[1759070283542,4.4703,201.24,201.17,7.96]
[1759070283743,12.0603,201.24,201.17,7.96]
[1759070288248,12.0603,201.24,201.17,12.4316]
[1759070290549,7.59,201.24,201.17,12.4316]
[1759070292448,7.59,201.24,201.18,4.4713]
[1759070292645,4.4694,201.28,201.16,8.04]
[1759070292646,7.83,201.27,201.16,8.04]
[1759070293647,7.83,201.27,201.19,8.04]
[1759070294246,7.83,201.27,201.23,8.04]
[1759070295448,8.6949401,201.31,201.25,8.04]
[1759070295850,7.83,201.31,201.25,8.04]
[1759070296546,7.83,201.31,201.25,12.5097]
[1759070298057,7.83,201.31,201.21,8.04]
[1759070299650,4.4692,201.29,201.21,12.5106]
[1759070299854,7.83,201.28,201.21,12.5106]
[1759070302659,7.83,201.28,201.22,4.4704]
[1759070305165,12.2993,201.28,201.21,8.04]
[1759070305365,12.2993,201.28,201.2,4.471]
[1759070305665,7.83,201.28,201.21,12.4806]
[1759070306862,7.83,201.28,201.23,8.01]
[1759070307158,7.63,201.29,201.22,12.4804]
[1759070307566,7.63,201.29,201.21,8.01]
[1759070308958,7.63,201.29,201.25,4.4697]
[1759070309261,7.63,201.32,201.23,8.01]
[1759070310666,7.63,201.32,201.25,12.4797]
[1759070311157,7.63,201.32,201.26,4.4695]
[1759070313363,7.63,201.32,201.27,4.4693]
[1759070313766,7.63,201.32,201.28,8.01]
[1759070314162,7.63,201.34,201.28,8.01]
[1759070315259,7.63,201.34,201.28,12.4792]
[1759070315461,4.4676,201.36,201.28,4.4692]
[1759070315671,7.63,201.36,201.23,8.01]
[1759070315864,7.63,201.33,201.25,8.01]
[1759070316672,7.63,201.33,201.25,12.4797]
[1759070316968,7.63,201.33,201.25,8.01]
[1759070317766,4.4678,201.35,201.28,4.4692]
[1759070317966,7.63,201.34,201.28,4.4692]
[1759070318870,7.63,201.34,201.27,8.01]
[1759070321680,7.63,201.34,201.24,8.01]
[1759070322772,7.63,201.3,201.24,8.01]
[1759070325275,12.0982,201.33,201.22,8.01]
[1759070326372,7.63,201.33,201.26,8.01]
[1759070327677,7.63,201.33,201.26,12.4795]
[1759070329775,7.63,201.33,201.25,8.01]
[1759070329979,1.74774305,201.38,201.25,8.01]
[1759070329980,7.63,201.37,201.25,8.01]
[1759070331584,12.0974,201.37,201.29,8.01]
[1759070332884,4.4677,201.36,201.29,8.01]
[1759070333088,7.63,201.35,201.29,8.01]
[1759070336589,12.0979,201.35,201.29,8.01]
[1759070336995,7.63,201.35,201.29,8.01]
[1759070337387,4.4681,201.34,201.29,8.01]
[1759070338296,7.73,201.33,201.29,8.01]
[1759070338993,7.73,201.33,201.24,8.04]
[1759070339590,7.73,201.33,201.28,4.4691]
[1759070339894,7.73,201.33,201.29,8.04]
[1759070340493,4.4681,201.34,201.29,8.04]
[1759070340689,7.73,201.33,201.29,8.04]
[1759070340893,4.4681,201.34,201.29,8.04]
[1759070341792,7.73,201.33,201.29,8.04]
[1759070341987,4.4681,201.34,201.29,8.04]
[1759070342189,7.73,201.33,201.29,8.04]
[1759070342388,4.4681,201.34,201.29,8.04]
[1759070342786,7.73,201.33,201.29,8.04]
[1759070342997,7.73,201.32,201.29,8.04]
[1759070343192,7.73,201.32,201.25,12.5097]
[1759070343391,7.73,201.35,201.25,12.5097]
[1759070343798,77.2358,201.33,201.19,5.48841841]
[1759070344099,7.73,201.31,201.21,8.04]
[1759070345000,7.73,201.33,201.21,8.04]
[1759070346007,7.73,201.32,201.22,8.04]
[1759070347394,77.2463,201.3,201.19,8.04]
[1759070347605,7.73,201.3,201.17,8.04]
[1759070347805,7.73,201.28,201.18,8.04]
[1759070348995,7.73,201.28,201.19,4.4712]
[1759070349198,7.73,201.28,201.2,8.04]
[1759070351409,12.1995,201.28,201.2,8.04]
[1759070353204,7.73,201.28,201.2,12.5109]
[1759070353799,4.4695,201.27,201.2,12.5109]
[1759070354206,8.05,201.26,201.2,12.5109]
[1759070355308,12.5191,201.29,201.21,4.4706]
[1759070355499,12.5191,201.29,201.22,7.73]
[1759070355709,8.05,201.29,201.22,7.73]
[1759070356613,8.05,201.29,201.23,4.4702]
[1759070357005,8.05,201.29,201.22,7.73]
[1759070357906,4.4697,201.27,201.22,7.73]
[1759070358108,8.05,201.26,201.22,7.73]
[1759070358612,4.4697,201.27,201.22,7.73]
[1759070359013,8.05,201.26,201.22,7.73]
[1759070359315,4.4697,201.27,201.22,7.73]
[1759070359618,8.05,201.3,201.22,7.73]
[1759070360106,8.05,201.29,201.17,7.73]
[1759070360510,4.4703,201.24,201.17,7.73]
[1759070360708,8.05,201.23,201.17,7.73]
[1759070366613,12.5205,201.23,201.17,7.73]
[1759070369513,12.5205,201.23,201.15,4.472]
[1759070369716,69.5447,201.22,201.1,369.23]
[1759070369919,7.92,201.21,201.1,369.23]
[1759070370524,7.92,201.2,201.1,369.23]
[1759070370722,7.92,201.18,201.1,369.23]
[1759070371419,7.92,201.18,201.11,7.59]
[1759070371627,8.45607515,201.25,201.14,7.59]
[1759070372114,8.45607515,201.25,201.15,7.59]
[1759070372316,8.45607515,201.25,201.17,7.59]
[1759070373123,8.45607515,201.25,201.17,12.0615]
[1759070376524,77.4569,201.24,201.1,7.59]
[1759070376830,7.92,201.22,201.1,7.59]
[1759070377431,4.4717,201.17,201.1,7.59]
[1759070377630,12.3917,201.17,201.1,7.59]
[1759070379233,7.92,201.17,201.1,12.0632]
[1759070383029,12.3919,201.17,201.1,7.59]
[1759070384031,7.92,201.17,201.1,7.59]
[1759070386229,7.92,201.14,201.0,7.59]
[1759070387532,4.473,201.12,201.03,4.4747]
[1759070387727,7.92,201.11,201.04,7.59]
[1759070400642,7.92,201.11,201.04,12.0645]
[1759070401842,7.92,201.11,201.04,7.59]
[1759070405539,7.42,201.15,201.07,7.86]
[1759070406239,4.4726,201.14,201.07,7.86]
[1759070406436,7.42,201.13,201.07,7.86]
[1759070409634,7.42,201.22,201.07,7.86]
[1759070409945,7.42,201.2,201.07,7.86]
[1759070411043,12.5319,201.17,201.1,7.5]
[1759070417951,8.06,201.17,201.1,11.9731]
[1759070418553,8.06,201.17,201.11,4.4729]
[1759070418854,8.06,201.17,201.12,7.5]
[1759070419049,8.06,201.17,201.11,4.4729]
[1759070419455,8.06,201.17,201.12,7.5]
[1759070419651,8.06,201.17,201.11,4.4729]
[1759070419853,8.06,201.17,201.12,7.5]
[1759070420353,8.06,201.17,201.11,4.4729]
[1759070420950,8.06,201.17,201.12,7.5]
[1759070421358,8.06,201.17,201.11,4.4729]
[1759070422257,8.06,201.17,201.12,7.5]
[1759070422454,8.06,201.17,201.11,4.4729]
[1759070422752,8.06,201.17,201.12,7.5]
[1759070422954,8.06,201.21,201.1,7.5]
[1759070423555,8.06,201.21,201.14,4.4722]
[1759070423853,8.06,201.21,201.15,7.39]
[1759070424053,8.06,201.21,201.16,4.4718]
[1759070424249,8.06,201.21,201.12,7.39]
[1759070425563,8.06,201.21,201.14,4.4723]
[1759070425759,8.06,201.21,201.14,11.8623]
[1759070426262,4.4708,201.22,201.14,11.8623]
[1759070426463,7.85,201.21,201.14,11.8623]
[1759070430364,7.85,201.21,201.13,7.39]
[1759070430570,12.85617515,201.25,201.13,7.39]
[1759070430971,12.85617515,201.25,201.14,121.28]
[1759070431171,12.85617515,201.25,201.15,7.39]
[1759070431568,12.85617515,201.25,201.18,4.4715]
[1759070431774,12.85617515,201.25,201.18,11.8615]
[1759070433975,8.38607515,201.25,201.18,11.8615]
[1759070434768,8.38607515,201.25,201.18,4.4715]
[1759070435069,8.38607515,201.25,201.21,7.39]
[1759070435278,8.38607515,201.25,201.2,4.471]
[1759070435469,7.85,201.24,201.21,7.39]
[1759070435668,7.85,201.24,201.2,4.471]
[1759070436269,7.85,201.24,201.21,7.39]
[1759070436872,7.85,201.24,201.2,4.471]
[1759070437478,7.85,201.24,201.21,7.39]
[1759070437778,7.85,201.24,201.2,4.471]
[1759070437972,7.85,201.24,201.21,7.39]
[1759070438171,7.85,201.24,201.2,4.471]
[1759070438372,7.85,201.24,201.21,7.39]
[1759070438979,0.53607515,201.25,201.21,7.39]
[1759070439479,7.85,201.24,201.21,7.39]
[1759070442776,0.53607515,201.25,201.21,7.39]
[1759070442976,7.85,201.24,201.21,7.39]
[1759070443380,7.85,201.24,201.16,7.39]
[1759070443581,7.85,201.23,201.1,7.39]
[1759070444075,4.4712,201.2,201.12,4.4727]
[1759070444279,7.85,201.19,201.12,4.4727]
[1759070445476,7.85,201.19,201.13,4.4725]
[1759070445682,7.85,201.19,201.12,7.39]
[1759070446680,7.85,201.19,201.16,7.39]
[1759070447072,7.85,201.23,201.13,7.39]
[1759070447279,7.85,201.23,201.14,7.39]
[1759070448178,7.85,201.23,201.17,4.4716]
[1759070449576,7.85,201.23,201.19,4.4713]
[1759070449776,7.85,201.24,201.19,4.4713]
[1759070450281,0.53607515,201.25,201.19,4.4713]
[1759070450476,7.85,201.24,201.19,4.4713]
[1759070450683,7.85,201.24,201.19,11.8613]
[1759070450884,8.38607515,201.25,201.19,11.8613]
[1759070451387,12.85607515,201.25,201.15,11.862]
[1759070451580,0.53607515,201.25,201.15,11.862]
[1759070452074,8.936,201.34,201.17,7.39]
[1759070452075,7.85,201.34,201.17,7.39]
[1759070452282,30.93,201.34,201.17,7.39]
[1759070453382,45.66634523,201.34,201.17,7.39]
[1759070453684,7.98,201.3,201.22,11.8905]
[1759070460996,12.449,201.3,201.22,11.8905]
[1759070462398,12.449,201.3,201.22,4.4705]
[1759070462594,7.98,201.3,201.24,7.42]
[1759070463201,7.98,201.3,201.24,11.89]
[1759070463497,7.98,201.3,201.24,7.42]
[1759070464190,7.98,201.3,201.17,20.75890232]
[1759070464390,7.98,201.32,201.18,7.42]
[1759070465699,7.98,201.28,201.21,7.42]
[1759070466198,7.98,201.28,201.21,4.4707]
[1759070466394,7.98,201.28,201.22,7.42]
[1759070467602,12.4494,201.28,201.22,7.42]
[1759070469405,7.98,201.28,201.22,7.42]
[1759070470009,7.98,201.34,201.22,7.42]
[1759070471310,12.4481,201.34,201.22,69.5419]
[1759070471505,12.4481,201.34,201.23,7.7]
[1759070472112,12.4481,201.34,201.23,119.5]
[1759070472311,12.4481,201.34,201.24,7.7]
[1759070472711,12.4481,201.34,201.27,12.1694]
[1759070473314,7.75,201.33,201.27,12.1694]
[1759070473514,7.75,201.33,201.27,7.7]
[1759070475719,7.75,201.33,201.27,12.1694]
[1759070478119,7.75,201.33,201.28,4.4691]
[1759070478313,7.75,201.34,201.28,12.1691]
[1759070478913,7.75,201.34,201.28,4.4691]
[1759070479117,71.75176205,201.35,201.28,4.4691]
[1759070479420,79.50176205,201.35,201.29,7.7]
[1759070482323,83.96966205,201.35,201.29,7.7]
[1759070483525,79.50176205,201.35,201.26,4.4697]
[1759070484726,7.4,201.32,201.26,4.4697]
[1759070485826,7.4,201.32,201.27,4.4694]
[1759070486027,7.4,201.34,201.27,4.4694]
[1759070486519,71.75176205,201.35,201.26,12.3396]
[1759070486920,7.4,201.34,201.26,12.3396]
[1759070487423,7.4,201.32,201.26,12.3396]
[1759070487829,7.4,201.32,201.27,4.4694]
[1759070488226,7.4,201.32,201.28,7.87]
[1759070489130,7.4,201.32,201.27,4.4694]
[1759070489533,7.4,201.32,201.28,7.87]
[1759070489731,7.4,201.32,201.27,4.4694]
[1759070490527,4.4683,201.33,201.28,7.87]
[1759070490731,7.4,201.32,201.27,4.4694]
[1759070490928,7.4,201.32,201.28,7.87]
[1759070491134,7.4,201.32,201.27,4.4694]
[1759070491633,7.4,201.32,201.28,7.87]
[1759070491839,7.4,201.32,201.27,4.4694]
[1759070492230,7.4,201.32,201.29,7.87]
[1759070492732,76.21956205,201.35,201.29,7.87]
[1759070493131,7.4,201.34,201.29,7.87]
[1759070493334,76.21956205,201.35,201.29,7.87]
[1759070494731,7.4,201.34,201.29,7.87]
[1759070495431,76.21956205,201.35,201.28,4.4692]
[1759070495637,7.4,201.34,201.28,12.3392]
[1759070498641,7.4,201.34,201.28,7.87]
[1759070498843,71.75176205,201.35,201.28,7.87]
[1759070499533,71.75176205,201.35,201.31,4.4685]
[1759070499731,79.15176205,201.35,201.32,7.87]
[1759070500130,7.4,201.35,201.29,7.87]
[1759070500436,7.4,201.38,201.29,7.87]
[1759070501641,7.4,201.38,201.34,7.87]
[1759070501840,7.4,201.38,201.33,4.468]
[1759070502042,7.4,201.38,201.34,7.87]
[1759070502935,7.4,201.38,201.33,4.468]
[1759070503242,7.4,201.38,201.34,7.87]
[1759070503442,5.3308211,201.42,201.33,12.338]
[1759070503642,7.4,201.41,201.33,12.338]
[1759070503845,5.3308211,201.42,201.33,12.338]
[1759070504443,7.4,201.41,201.35,4.4677]
[1759070505146,5.3308211,201.42,201.33,12.3381]
[1759070505345,7.4,201.41,201.33,12.3381]
[1759070505548,5.3308211,201.42,201.33,12.3381]
[1759070505747,7.4,201.41,201.34,4.4678]
[1759070513755,7.4,201.41,201.32,4.4684]
[1759070514661,7.37,201.38,201.32,4.4684]
[1759070515159,11.8372,201.38,201.31,7.66]
[1759070516757,4.4675,201.37,201.31,7.66]
[1759070517056,7.37,201.36,201.31,7.66]
[1759070517656,4.4675,201.37,201.31,7.66]
[1759070518956,7.37,201.36,201.3,12.1288]
[1759070521354,4.4676,201.36,201.3,7.66]
[1759070521558,7.37,201.35,201.3,7.66]
[1759070521967,7.37,201.35,201.29,7.66]
[1759070526370,11.8379,201.35,201.29,7.66]
[1759070526864,11.8379,201.35,201.29,12.1289]
[1759070527666,7.37,201.35,201.29,12.1289]
[1759070527867,7.37,201.35,201.29,4.4689]
[1759070528069,7.37,201.35,201.3,7.66]
[1759070528366,7.37,201.35,201.29,4.4689]
[1759070528670,7.37,201.36,201.3,7.66]
[1759070532270,11.8377,201.36,201.3,7.66]
[1759070535368,4.4679,201.35,201.3,7.66]
[1759070535570,7.44,201.34,201.27,12.3894]
[1759070538169,7.44,201.33,201.27,12.3894]
[1759070538366,7.44,201.33,201.27,7.92]
[1759070539974,7.44,201.33,201.23,7.92]
[1759070540270,7.44,201.29,201.23,7.92]
[1759070540776,11.9092,201.29,201.23,7.92]
[1759070542878,4.4694,201.28,201.23,7.92]
[1759070543476,7.44,201.29,201.23,7.92]
[1759070543775,7.44,201.35,201.23,7.92]
[1759070544377,4.4684,201.33,201.23,7.92]
[1759070544566,11.9084,201.33,201.23,7.92]
[1759070545478,7.44,201.32,201.23,7.92]
[1759070546177,7.44,201.29,201.23,7.92]
[1759070546979,11.9092,201.29,201.23,7.92]
[1759070552182,7.44,201.29,201.24,7.96]
[1759070552684,76.9427,201.34,201.24,7.96]
[1759070553683,7.44,201.29,201.24,7.96]
[1759070553883,7.44,201.29,201.23,4.4704]
[1759070554078,4.469,201.3,201.24,7.96]
[1759070554284,11.909,201.3,201.24,7.96]
[1759070555686,7.44,201.37,201.25,7.96]
[1759070556086,11.9075,201.37,201.28,4.4692]
[1759070556381,0.8645211,201.42,201.29,7.96]
[1759070556382,7.44,201.41,201.29,7.96]
[1759070556684,11.9066,201.41,201.31,4.4685]
[1759070556878,11.9066,201.41,201.32,7.96]
[1759070558677,4.4668,201.4,201.32,7.96]
[1759070559088,7.44,201.39,201.32,7.96]
[1759070559880,4.4671,201.38,201.32,7.96]
[1759070562684,11.9075,201.37,201.32,7.96]
[1759070562890,7.44,201.36,201.28,7.96]
[1759070564093,4.4677,201.36,201.28,7.96]
[1759070565687,4.4677,201.36,201.3,7.96]
[1759070565984,11.907,201.39,201.3,7.96]
[1759070567282,7.44,201.39,201.3,7.96]
[1759070568692,4.4675,201.37,201.3,7.96]
[1759070568996,7.44,201.34,201.26,7.96]
[1759070569185,4.4689,201.31,201.26,7.96]
[1759070569390,7.44,201.3,201.26,7.96]
[1759070569591,4.4689,201.31,201.26,7.96]
[1759070569791,7.44,201.3,201.26,7.96]
[1759070570894,11.9082,201.33,201.24,7.96]
[1759070572696,11.9082,201.33,201.25,7.96]
[1759070574595,11.9082,201.33,201.26,7.5]
[1759070574800,7.44,201.33,201.26,7.5]
[1759070575498,7.44,201.33,201.26,11.9696]
[1759070575692,7.44,201.33,201.27,7.5]
[1759070576401,7.44,201.33,201.23,7.5]
[1759070576801,76.9468,201.33,201.23,7.5]
[1759070577198,12.3692,201.29,201.23,7.5]
[1759070580998,4.4695,201.28,201.23,7.5]
[1759070581201,7.9,201.27,201.19,7.5]
[1759070581602,4.4704,201.24,201.19,7.5]
[1759070581905,7.9,201.23,201.16,369.08]
[1759070587107,7.9,201.23,201.17,7.5]
[1759070590702,69.5143,201.31,201.16,487.1518]
[1759070590703,8.17,201.26,201.19,8.06]
[1759070591705,12.6399,201.26,201.19,8.06]
[1759070592097,8.17,201.26,201.19,8.06]
[1759070592302,8.17,201.24,201.19,8.06]
[1759070592602,8.17,201.27,201.19,8.06]
[1759070593605,8.17,201.23,201.19,8.06]
[1759070594109,8.17,201.22,201.16,495.2118]
[1759070594311,8.17,201.24,201.16,8.06]
[1759070595112,8.17,201.21,201.12,8.06]
[1759070596613,12.641,201.21,201.12,12.5327]
[1759070596813,8.17,201.2,201.12,12.5327]
[1759070597408,69.534,201.25,201.12,8.06]
[1759070597711,8.17,201.19,201.12,8.06]
[1759070598212,12.6415,201.19,201.12,8.06]
[1759070599214,8.17,201.19,201.12,8.06]
[1759070599616,8.17,201.19,201.12,12.5328]
[1759070601114,8.17,201.19,201.12,8.06]
[1759070601115,12.6415,201.19,201.12,8.06]
[1759070602912,8.17,201.24,201.12,77.6384]
[1759070603119,8.17,201.24,201.13,8.06]
[1759070604611,8.17,201.24,201.18,12.3814]
[1759070604818,8.17,201.24,201.18,7.91]
[1759070605815,8.17,201.24,201.2,7.91]
[1759070606015,0.46818881,201.25,201.2,7.91]
[1759070606415,7.76,201.24,201.2,7.91]
[1759070606723,0.46818881,201.25,201.2,7.91]
[1759070607719,7.76,201.24,201.2,7.91]
[1759070607919,0.46818881,201.25,201.2,7.91]
[1759070608122,7.76,201.24,201.13,7.91]
[1759070608719,7.76,201.24,201.17,12.3816]
[1759070613228,7.76,201.24,201.18,4.4714]
[1759070613627,7.76,201.24,201.19,7.91]
[1759070614428,12.69828881,201.25,201.18,12.3814]
[1759070619134,8.22818881,201.25,201.2,4.471]
[1759070619334,12.2295,201.28,201.18,7.91]
[1759070619529,3.42239941,201.27,201.18,7.91]
[1759070619735,3.42239941,201.26,201.18,7.91]
[1759070619935,7.76,201.28,201.18,7.91]
[1759070620136,3.42225738,201.27,201.18,7.91]
[1759070620336,3.42359361,201.26,201.18,7.91]
[1759070620531,7.76,201.28,201.19,69.554]
[1759070620737,7.76,201.31,201.2,7.91]
[1759070621032,3.42305246,201.3,201.22,7.91]
[1759070621238,7.76,201.31,201.22,7.91]
[1759070621434,3.42384705,201.3,201.22,7.91]
[1759070621731,7.76,201.29,201.22,7.91]
[1759070623034,7.76,201.29,201.21,7.91]
[1759070624434,7.76,201.29,201.24,7.91]
[1759070624630,4.4685,201.32,201.24,7.91]
[1759070624631,12.2285,201.32,201.24,7.91]
[1759070624835,3.42489642,201.31,201.24,7.91]
[1759070625038,3.42489642,201.3,201.24,12.3801]
[1759070625341,12.2285,201.32,201.25,7.91]
[1759070625530,3.42430049,201.31,201.25,7.91]
[1759070625733,4.4681,201.34,201.25,7.91]
[1759070625939,11.18363756,201.33,201.25,7.91]
[1759070626138,7.76,201.33,201.25,7.91]
[1759070626333,7.76,201.33,201.27,7.91]
[1759070626938,4.4676,201.36,201.29,7.91]
[1759070627134,3.42191925,201.35,201.29,7.91]
[1759070627336,4.4676,201.36,201.29,7.91]
[1759070627641,3.42013642,201.35,201.29,7.91]
[1759070627841,4.4676,201.36,201.29,7.91]
[1759070628030,3.42013642,201.35,201.29,7.91]
[1759070628234,4.4676,201.36,201.29,7.91]
[1759070628733,11.1786007,201.35,201.29,7.91]
[1759070628937,7.76,201.35,201.29,7.91]
[1759070632440,7.76,201.34,201.26,12.3796]
[1759070634047,7.76,201.34,201.26,7.91]
[1759070635550,7.76,201.34,201.28,4.4692]
[1759070636758,7.76,201.34,201.29,4.4689]
[1759070636950,7.76,201.34,201.25,69.5332]
[1759070637154,7.76,201.34,201.27,7.45]
[1759070638454,0.50409858,201.41,201.27,7.45]
[1759070638660,11.9466,201.4,201.29,7.45]
[1759070639554,11.9466,201.4,201.33,4.468]
[1759070640660,7.48,201.4,201.34,4.4678]
[1759070640860,7.48,201.4,201.34,11.9178]
[1759070641254,7.48,201.4,201.35,4.4675]
[1759070641459,7.48,201.4,201.36,7.45]
[1759070641660,7.48,201.42,201.36,7.45]
[1759070643662,7.48,201.41,201.26,7.45]
[1759070643858,7.99084831,201.41,201.26,7.45]
[1759070644267,7.48,201.35,201.29,4.4691]
[1759070644564,7.48,201.35,201.26,7.45]
[1759070645563,7.48,201.35,201.28,4.4692]
[1759070645767,11.948,201.35,201.28,4.4692]
[1759070649568,11.948,201.35,201.24,121.08]
[1759070649569,7.48,201.35,201.3,4.4687]
[1759070649770,7.48,201.4,201.31,7.45]
[1759070649971,7.48,201.4,201.3,4.4687]
[1759070650159,7.48,201.37,201.3,4.4687]
[1759070650770,11.9475,201.37,201.3,4.4687]
[1759070651671,7.48,201.37,201.3,4.4687]
[1759070654972,7.48,201.38,201.22,7.45]
[1759070655174,69.4966,201.36,201.22,7.45]
[1759070655473,7.48,201.35,201.22,7.45]
[1759070655676,4.4688,201.31,201.23,4.4704]
[1759070655877,7.48,201.3,201.23,4.4704]
[1759070656268,7.48,201.3,201.22,7.45]
[1759070657078,7.48,201.31,201.25,4.4699]
[1759070660881,7.48,201.31,201.25,7.56]
[1759070661475,75.04160353,201.39,201.25,7.56]
[1759070661476,7.72,201.33,201.27,4.4694]
[1759070665580,3.42658275,201.32,201.27,4.4694]
[1759070665781,7.8,201.3,201.27,4.4694]
[1759070666385,7.8,201.3,201.27,12.1194]
[1759070666581,12.2684,201.33,201.24,12.1201]
[1759070666781,7.8,201.31,201.24,4.4701]
[1759070666979,3.42666012,201.3,201.24,4.4701]
[1759070667179,3.42666012,201.29,201.24,4.4701]
[1759070667379,11.2270052,201.28,201.21,7.65]
[1759070667683,7.8,201.28,201.21,7.65]
[1759070667885,7.8,201.28,201.24,4.47]
[1759070668086,4.4685,201.32,201.24,4.47]
[1759070668275,11.22718862,201.31,201.24,7.65]
[1759070668484,3.42718862,201.3,201.24,7.65]
[1759070668679,7.8,201.31,201.24,7.65]
[1759070668986,3.42659901,201.3,201.26,4.4698]
[1759070669187,7.8,201.36,201.26,12.1198]
[1759070669387,3.4267585,201.35,201.26,12.1198]
[1759070669685,3.4267585,201.34,201.26,12.1198]
[1759070669987,7.8,201.32,201.26,12.1198]
[1759070670284,7.8,201.3,201.26,12.1198]
[1759070670482,4.4679,201.35,201.27,4.4694]
[1759070670686,3.42678017,201.34,201.27,7.65]
[1759070670879,3.42678017,201.33,201.27,7.65]
[1759070671082,7.8,201.36,201.27,7.65]
[1759070671283,3.42630638,201.35,201.29,4.469]
[1759070671485,7.8,201.33,201.29,12.119]
[1759070672085,3.42621989,201.32,201.27,4.4695]
[1759070672288,7.8,201.31,201.28,7.65]
[1759070672987,12.268,201.35,201.25,7.65]
[1759070673186,3.42627147,201.34,201.25,7.65]
[1759070673490,3.42627147,201.33,201.25,7.65]
[1759070673680,3.42627147,201.32,201.29,7.65]
[1759070673886,12.268,201.35,201.29,7.65]
[1759070674189,7.8,201.33,201.28,4.4692]
[1759070674394,7.8,201.33,201.29,7.65]
[1759070675096,3.42625144,201.32,201.29,7.65]
[1759070675288,7.8,201.33,201.29,7.65]